bitfinex-derivatives/quotes_ETHF0:USTF0_20250607
["timestamp","ask_amount","ask_price","bid_price","bid_amount"]
[1749310282283,0.7943,2516.6,2516.4,0.79433]
[1749310283088,0.7943,2516.6,2516.5,0.79431]
[1749310283590,4.717,2516.7,2516.2,3.2078]
[1749310283789,4.717,2516.7,2516.3,0.79436]
[1749310283990,0.79434,2516.4,2516.3,0.79436]
[1749310284187,1.3164,2516.6,2516.1,2.6307]
[1749310284188,0.79429,2516.6,2516.5,0.7943]
[1749310284387,0.79429,2516.6,2516.1,2.6307]
[1749310284388,4.717,2516.6,2516.2,6.55179]
[1749310284586,4.717,2516.6,2516.5,0.79431]
[1749310286390,0.79424,2516.8,2516.7,0.79425]
[1749310286579,5.50924,2516.8,2516.7,0.79425]
[1749310286782,0.79424,2516.8,2516.7,0.79425]
[1749310286983,0.00596184,2516.9,2516.8,0.79422]
[1749310287188,0.00596184,2516.9,2516.8,4.00202]
[1749310287590,0.00596184,2516.9,2516.8,9.00202]
[1749310288288,0.00596184,2516.9,2516.8,10.32292]
[1749310288788,9.41408,2517.6,2516.8,10.32292]
[1749310288789,3.2078,2517.6,2516.9,1.98543]
[1749310288991,4.715,2517.8,2517.5,3.2078]
[1749310289188,5.50892,2517.8,2517.6,0.79395]
[1749310289383,4.715,2517.8,2517.7,0.79393]
[1749310289584,4.715,2518.1,2517.6,2.0678]
[1749310289789,4.72096184,2518.1,2517.9,0.79385]
[1749310290188,4.72096184,2518.1,2517.7,1.3711]
[1749310290189,5.51478184,2518.1,2517.8,4.00168]
[1749310290390,0.79385,2518.0,2517.8,3.2078]
[1749310290691,5.51478184,2518.1,2517.9,0.79385]
[1749310292089,5.51478184,2518.1,2517.9,2.16495]
[1749310292290,0.79384,2518.0,2517.9,1.3711]
[1749310292491,0.79979184,2518.1,2517.9,2.16496]
[1749310292694,0.00596184,2518.1,2518.0,0.79384]
[1749310292896,0.79977184,2518.1,2517.9,2.16495]
[1749310293499,0.79384,2518.0,2517.9,2.16495]
[1749310293700,0.79978184,2518.1,2518.0,0.79384]
[1749310293994,0.00596184,2518.1,2518.0,0.79384]
[1749310295392,0.00596184,2518.1,2518.0,10.50684]
[1749310295694,2.16101,2519.1,2518.9,0.79355]
[1749310295902,2.16101,2519.1,2518.8,0.79357]
[1749310295903,0.79354,2519.0,2518.8,0.79357]
[1749310296194,2.16101,2519.1,2518.9,0.79355]
[1749310296390,2.16101,2519.1,2518.8,1.2854]
[1749310296590,1.46951,2519.1,2518.9,0.79354]
[1749310296793,1.46951,2519.1,2518.8,2.07896]
[1749310296794,0.79352,2519.0,2518.8,2.07896]
[1749310296995,0.79353,2519.0,2518.9,0.79355]
[1749310297297,0.676,2519.1,2518.9,0.79355]
[1749310297598,0.79352,2519.0,2518.9,0.79355]
[1749310297792,0.79354,2519.0,2518.8,2.07899]
[1749310297994,0.79943375,2519.2,2519.0,0.79352]
[1749310298294,0.79353,2519.0,2518.9,0.79354]
[1749310298490,0.00595375,2519.2,2518.8,1.2854]
[1749310298695,0.79351,2519.1,2519.0,0.79352]
[1749310299100,0.79351,2519.1,2518.8,1.2854]
[1749310299101,0.7935,2519.1,2518.8,1.2854]
[1749310299392,0.79352,2519.0,2518.8,1.2854]
[1749310299590,0.00595375,2519.2,2518.8,2.07897]
[1749310299897,0.79355,2519.0,2518.8,2.07897]
[1749310300597,0.79355,2518.9,2518.8,2.07899]
[1749310301197,0.79355,2518.9,2518.8,1.2854]
[1749310301400,0.79355,2518.9,2518.8,2.07899]
[1749310302490,0.79355,2518.9,2518.8,1.2854]
[1749310302697,0.00595375,2519.2,2518.8,2.07899]
[1749310302900,0.79355,2518.9,2518.8,2.07899]
[1749310304901,0.79355,2518.9,2518.8,1.2854]
[1749310305104,0.79357,2518.9,2518.8,0.79359]
[1749310305597,0.79354,2519.0,2518.9,0.79355]
[1749310308301,0.79357,2518.9,2518.8,0.79358]
[1749310309712,1.28255375,2519.2,2519.1,0.79349]
[1749310309713,0.00595375,2519.2,2519.1,0.79349]
[1749310310003,0.79349,2519.1,2519.0,3.2078]
[1749310310199,0.79349,2519.1,2518.9,0.79949184]
[1749310310400,0.79349,2519.1,2519.0,0.79352]
[1749310310606,0.79349,2519.1,2518.9,0.86840356]
[1749310311001,0.79943375,2519.2,2519.0,0.79352]
[1749310311304,0.79943375,2519.2,2518.9,0.07487356]
[1749310311305,0.00595375,2519.2,2519.1,0.79349]
[1749310311999,0.79941375,2519.2,2519.1,0.79349]
[1749310312506,0.00595375,2519.2,2519.1,0.79349]
[1749310316907,0.79941375,2519.2,2519.1,0.79349]
[1749310317411,0.00595375,2519.2,2519.1,0.79349]
[1749310317714,0.79941375,2519.2,2519.1,0.79349]
[1749310318614,0.79352,2519.0,2518.9,4.07619356]
[1749310318810,0.00595375,2519.2,2519.0,0.79351]
[1749310318811,0.79351,2519.1,2519.0,0.79351]
[1749310319310,0.79943375,2519.2,2519.0,0.79351]
[1749310319512,0.79943375,2519.2,2519.1,0.79349]
[1749310319703,1.89144688,2519.2,2519.1,0.79349]
[1749310320113,0.79349,2519.1,2519.0,0.79349]
[1749310320307,1.09796688,2519.2,2519.1,0.79349]
[1749310320308,1.27565375,2519.2,2519.1,0.79349]
[1749310320507,2.36803037,2519.2,2519.1,0.79349]
[1749310321114,2.36802854,2519.2,2519.1,0.79349]
[1749310321617,3.16148854,2519.2,2519.1,0.79349]
[1749310321914,2.36802854,2519.2,2519.0,0.79349]
[1749310322118,1.88699632,2519.1,2519.0,0.79349]
[1749310322515,1.09350632,2519.1,2519.0,0.79349]
[1749310325823,0.00595375,2519.2,2519.1,0.79349]
[1749310326022,1.11766831,2519.2,2519.1,0.79349]
[1749310326723,1.11766831,2519.2,2519.1,0.86240172]
[1749310327325,2.39516831,2519.2,2519.1,0.86240172]
[1749310328121,3.18862831,2519.2,2519.1,0.06891172]
[1749310328324,3.18862831,2519.2,2519.1,0.86240172]
[1749310329228,8.18862831,2519.2,2519.1,0.06891172]
[1749310330021,7.11716831,2519.2,2519.1,0.86240172]
[1749310330218,1.11766831,2519.2,2519.1,0.86240172]
[1749310332927,1.11766831,2519.2,2519.1,1.54470172]
[1749310335031,0.00595375,2519.2,2519.1,1.54470172]
[1749310337032,0.00595375,2519.2,2519.1,2.80610172]
[1749310344140,0.00595375,2519.2,2519.1,6.26570172]
[1749310346237,0.00595375,2519.2,2519.1,7.65510172]
[1749310359254,0.00595375,2519.2,2519.1,24.44870172]
[1749310360049,0.00595375,2519.2,2519.1,23.76640172]
[1749310360355,0.00595375,2519.2,2519.1,0.86240172]
[1749310361252,2.76441375,2519.2,2519.1,0.06891172]
[1749310361459,4.541158,2519.2,2519.1,0.06891172]
[1749310361654,3.747698,2519.2,2519.1,0.86240172]
[1749310361954,2.63675375,2519.2,2519.1,0.86240172]
[1749310364052,4.54108284,2519.2,2519.1,0.06891172]
[1749310365154,9.54108284,2519.2,2519.1,0.06891172]
[1749310365362,0.79352,2519.0,2518.9,0.00596184]
[1749310365560,0.79352,2519.0,2518.9,0.79952184]
[1749310366661,6.90352482,2519.0,2518.9,0.00596184]
[1749310367657,0.79361,2518.8,2518.6,3.2078]
[1749310367852,9.72381221,2518.7,2518.1,0.79381]
[1749310368057,9.02841221,2518.6,2517.7,3.2078]
[1749310368262,2.40756069,2518.5,2518.4,0.7937]
[1749310368762,1.2993,2518.5,2518.4,0.7937]
[1749310371364,0.79371,2518.4,2518.2,0.00596184]
[1749310371561,1.2644,2518.3,2518.2,0.79971184]
[1749310372160,1.2644,2518.3,2518.2,0.00596184]
[1749310372467,1.2644,2518.3,2518.2,0.79974184]
[1749310372769,6.76914,2518.3,2518.2,0.00596184]
[1749310378076,11.76914,2518.3,2518.2,0.00596184]
[1749310378372,12.95978,2518.3,2517.8,0.7939]
[1749310378573,0.7939,2517.8,2517.7,0.79391]
[1749310378961,6.84069,2517.9,2517.8,0.7939]
[1749310379277,0.79392,2517.8,2517.7,0.79392]
[1749310379469,2.12872,2517.8,2517.7,0.79392]
[1749310380861,1.3348,2517.8,2517.7,0.79392]
[1749310381375,2.1287,2517.8,2517.7,0.79392]
[1749310382267,1.3348,2517.8,2517.7,0.79392]
[1749310382469,4.712,2517.9,2517.8,0.7939]
[1749310382675,4.00166,2518.0,2517.6,0.68936184]
[1749310382869,4.712,2517.9,2517.8,0.7939]
[1749310383275,5.50587,2517.9,2517.8,0.7939]
[1749310384986,0.7939,2517.8,2517.7,0.86283172]
[1749310385172,0.7939,2517.8,2517.7,0.06891172]
[1749310385573,0.7939,2517.8,2517.7,0.86284172]
[1749310387575,0.7939,2517.8,2517.7,0.06891172]
[1749310387769,2.1257,2517.8,2517.7,0.06891172]
[1749310389179,2.1257,2517.8,2517.7,0.86284172]
[1749310389378,2.1257,2517.8,2517.7,0.06891172]
[1749310390079,2.7607,2517.8,2517.7,0.06891172]
[1749310391075,2.7607,2517.8,2517.7,0.86284172]
[1749310391382,0.79389,2517.9,2517.8,0.79389]
[1749310391675,5.50589,2517.9,2517.8,0.79389]
[1749310391875,5.50589,2517.9,2517.8,1.47579]
[1749310393584,5.50589,2517.9,2517.8,0.6819]
[1749310393883,5.50589,2517.9,2517.8,1.4758]
[1749310395380,5.50589,2517.9,2517.8,0.6819]
[1749310396581,0.79389,2517.9,2517.8,0.6819]
[1749310396789,4.63663,2518.1,2518.0,0.79384]
[1749310396979,0.79386,2518.0,2517.9,0.79385]
[1749310397687,8.71361,2518.1,2518.0,0.79384]
[1749310398081,7.9198,2518.1,2518.0,0.79384]
[1749310398282,4.712,2518.1,2518.0,0.79384]
[1749310399389,5.50581,2518.1,2518.0,0.79384]
[1749310399685,4.712,2518.1,2518.0,0.79384]
[1749310400488,5.50581,2518.1,2518.0,0.79384]
[1749310401384,4.712,2518.1,2518.0,0.79384]
[1749310401586,4.00154,2518.4,2518.3,0.79374]
[1749310401890,9.8230373,2518.4,2518.3,0.79374]
[1749310402188,0.79375,2518.3,2518.2,0.79375]
[1749310402589,7.9198,2518.4,2518.0,1.3295]
[1749310402789,0.79377,2518.3,2518.2,0.79378]
[1749310403287,0.79378,2518.2,2518.1,0.79379]
[1749310403787,0.79377,2518.3,2518.2,0.79377]
[1749310403988,4.00154,2518.4,2518.3,0.79374]
[1749310404186,7.9198,2518.4,2518.3,0.79374]
[1749310404386,3.2078,2518.4,2518.3,0.79374]
[1749310405185,3.2078,2518.7,2518.6,0.79365]
[1749310405390,7.9198,2518.7,2518.6,0.79365]
[1749310405692,4.712,2518.7,2518.6,0.79365]
[1749310405892,28.717,2519.0,2518.9,0.79356]
[1749310406092,30.62036188,2519.0,2518.8,0.79357]
[1749310406293,29.51052,2519.0,2518.8,0.79357]
[1749310407094,29.51054,2519.0,2518.8,0.79357]
[1749310408999,29.51054,2519.0,2518.6,1.3833]
[1749310409203,0.79365,2518.6,2518.5,3.2078]
[1749310409398,0.79369,2518.5,2518.3,1.43483]
[1749310409601,3.2078,2518.4,2517.9,0.79385]
[1749310409809,0.79378,2518.2,2518.1,0.79379]
[1749310410706,0.79378,2518.2,2518.0,0.79382]
[1749310410905,4.5704,2518.4,2517.9,0.79386]
[1749310411203,4.5704,2518.4,2518.1,0.79379]
[1749310411204,2.18136,2518.3,2518.1,0.79379]
[1749310411501,2.18136,2518.3,2517.8,0.70461172]
[1749310411502,0.79381,2518.1,2517.9,0.79385]
[1749310412196,0.79381,2518.1,2517.8,0.70461172]
[1749310412598,0.79384,2518.0,2517.8,1.49849172]
[1749310412802,0.79384,2518.0,2517.8,0.70461172]
[1749310413001,0.79382,2518.1,2517.9,0.79385]
[1749310413204,1.416,2518.2,2518.1,0.79381]
[1749310413401,0.0417,2518.2,2518.1,0.79381]
[1749310413803,0.83549,2518.2,2518.0,0.79382]
[1749310414503,0.83549,2518.2,2517.9,0.79385]
[1749310414504,0.79381,2518.1,2517.9,0.79385]
[1749310414704,0.79381,2518.1,2518.0,0.79384]
[1749310415514,0.79381,2518.1,2517.8,2.01181172]
[1749310415515,0.79381,2518.1,2517.9,0.79385]
[1749310415813,0.79381,2518.1,2518.0,0.79384]
[1749310416508,0.0911,2518.2,2517.8,0.06891172]
[1749310416716,0.79387,2517.9,2517.8,0.06891172]
[1749310417213,4.00167,2517.9,2517.8,0.06891172]
[1749310418011,4.00167,2517.9,2517.8,0.86281172]
[1749310418515,4.00167,2517.9,2517.8,0.06891172]
[1749310419718,4.00167,2517.9,2517.8,0.86281172]
[1749310420216,4.00167,2517.9,2517.8,0.06891172]
[1749310420813,4.00167,2517.9,2517.8,0.86281172]
[1749310424012,3.2078,2517.9,2517.8,0.86281172]
[1749310424615,7.9188,2517.9,2517.8,0.86281172]
[1749310425407,3.2078,2517.9,2517.8,0.86281172]
[1749310425613,7.9188,2517.9,2517.8,0.86281172]
[1749310427014,8.71267,2517.9,2517.8,0.86281172]
[1749310427321,5.50487,2517.9,2517.8,0.86281172]
[1749310431326,0.79386,2518.0,2517.9,0.79384]
[1749310431526,5.50486,2518.0,2517.9,1.43914]
[1749310435428,4.711,2518.0,2517.8,0.06891172]
[1749310435732,4.00167,2517.9,2517.8,0.06891172]
[1749310435927,5.95017,2517.9,2517.8,0.06891172]
[1749310437233,7.05846689,2517.9,2517.8,0.06891172]
[1749310437733,5.95017,2517.9,2517.8,0.06891172]
[1749310438123,7.05845732,2517.9,2517.8,0.06891172]
[1749310440729,0.79393,2517.7,2517.6,0.00596184]
[1749310440935,1.90221732,2517.7,2517.6,0.00596184]
[1749310441435,3.24331732,2517.7,2517.6,0.00596184]
[1749310441634,9.43429732,2517.7,2516.9,5.19322]
[1749310441937,4.00183,2517.5,2517.4,0.79403]
[1749310442137,5.11011732,2517.5,2517.4,0.79403]
[1749310442437,5.76141732,2517.5,2517.4,0.79403]
[1749310443136,7.13121732,2517.5,2517.4,0.79403]
[1749310443537,0.79404,2517.4,2517.3,0.79404]
[1749310444837,6.02291,2517.5,2517.4,0.79403]
[1749310445026,7.14079294,2517.5,2517.4,0.79403]
[1749310449240,0.79404,2517.4,2517.3,0.79403]
[1749310449836,3.2078,2517.5,2517.4,0.79403]
[1749310451339,4.7594,2517.7,2517.6,0.79396]
[1749310451639,4.7594,2517.7,2517.6,0.86287172]
[1749310451840,4.71,2517.7,2517.6,0.86287172]
[1749310452035,4.71,2517.7,2517.6,2.12717172]
[1749310455438,8.71173,2517.7,2517.6,0.06891172]
[1749310455636,9.82990689,2517.7,2517.6,0.06891172]
[1749310458044,5.82817689,2517.7,2517.6,0.86287172]
[1749310458543,0.84924184,2517.9,2517.8,0.7939]
[1749310458743,1.17649669,2517.9,2517.7,0.6393]
[1749310459044,1.91503485,2517.8,2517.7,0.6393]
[1749310462043,1.12113485,2517.8,2517.7,0.6393]
[1749310462249,0.25076184,2517.9,2517.7,0.6393]
[1749310462546,0.25076184,2517.9,2517.8,2.7354]
[1749310469947,0.79368,2518.6,2518.5,0.79368]
[1749310470147,0.79368,2518.6,2518.1,3.2078]
[1749310470148,0.79369,2518.5,2518.1,3.2078]
[1749310470446,0.79372,2518.4,2518.3,0.79372]
[1749310470955,0.79374,2518.3,2518.2,0.6604]
[1749310472456,0.79383,2518.1,2518.0,0.79383]
[1749310472651,0.79383,2518.1,2518.0,0.6718]
[1749310474155,0.79383,2518.1,2518.0,1.46564]
[1749310474355,0.7938,2518.2,2518.1,0.79379]
[1749310475149,6.0356,2518.3,2518.1,0.79379]
[1749310475356,5.50076,2518.3,2518.2,0.79377]
[1749310475554,5.50076,2518.3,2518.0,0.6718]
[1749310475555,5.50076,2518.3,2518.1,0.79378]
[1749310476057,5.50076,2518.3,2518.2,0.06891172]
[1749310477157,6.82966,2518.3,2518.2,0.06891172]
[1749310477661,0.7939,2517.8,2517.7,3.2078]
[1749310478458,0.7939,2517.8,2517.7,4.00173]
[1749310478659,0.7939,2517.8,2517.7,3.2078]
[1749310478858,0.794,2517.5,2517.4,0.6428]
[1749310479657,0.79403,2517.4,2517.3,0.79404]
[1749310479863,0.6757,2517.7,2517.3,0.79404]
[1749310480157,0.79402,2517.5,2517.3,0.79404]
[1749310480361,0.79402,2517.5,2517.4,0.79403]
[1749310480964,1.2925,2517.6,2517.3,0.79405]
[1749310481364,0.79403,2517.4,2517.3,0.79405]
[1749310481764,0.79402,2517.5,2517.3,0.79405]
[1749310482063,0.79403,2517.4,2517.3,0.79405]
[1749310482465,0.79404,2517.4,2517.3,0.79406]
[1749310482665,1.2925,2517.6,2517.3,0.79406]
[1749310483370,0.794,2517.5,2517.3,0.79406]
[1749310484468,0.794,2517.5,2517.4,0.79403]
[1749310484870,0.794,2517.5,2517.3,0.79404]
[1749310486575,0.79403,2517.4,2517.3,0.79404]
[1749310487674,0.79401,2517.5,2517.3,0.79404]
[1749310488577,0.79401,2517.5,2517.4,0.79403]
[1749310496885,0.79403,2517.4,2517.3,0.06891172]
[1749310497878,0.79403,2517.4,2517.3,0.86297172]
[1749310498085,0.79403,2517.4,2517.3,0.06891172]
[1749310498386,2.80943,2517.4,2517.3,0.06891172]
[1749310500783,6.01723,2517.4,2517.3,0.06891172]
[1749310501185,6.32834691,2517.4,2517.3,0.06891172]
[1749310501483,6.32834691,2517.4,2517.2,0.00596184]
[1749310501484,0.79418,2516.9,2516.8,0.6785]
[1749310501680,4.00198,2516.9,2516.8,0.6785]
[1749310502083,4.63738,2516.9,2516.8,0.6785]
[1749310502478,4.63738,2516.9,2516.6,0.00596184]
[1749310502677,0.79425,2516.7,2516.6,0.00596184]
[1749310502882,0.79425,2516.7,2516.6,0.80024184]
[1749310503079,0.79425,2516.7,2516.6,0.00596184]
[1749310503483,0.79425,2516.7,2516.6,0.80024184]
[1749310504381,0.79424,2516.8,2516.7,0.79424]
[1749310504583,5.273,2516.9,2516.8,0.86313172]
[1749310504983,2.0652,2516.9,2516.8,0.86313172]
[1749310505184,2.0652,2516.9,2516.8,0.06891172]
[1749310506789,1.4298,2516.9,2516.8,0.86313172]
[1749310508595,1.4298,2516.9,2516.8,0.06891172]
[1749310510688,0.7942,2516.9,2516.8,0.86313172]
[1749310510895,8.70998,2517.0,2516.9,0.79418]
[1749310511396,8.70998,2517.0,2516.9,0.6828]
[1749310512900,8.70998,2517.0,2516.9,1.47698]
[1749310513092,8.70898,2517.0,2516.9,1.47698]
[1749310513292,8.70898,2517.0,2516.9,3.42528]
[1749310515293,0.00596184,2517.1,2517.0,0.79415]
[1749310515498,0.00596184,2517.1,2517.0,2.08585]
[1749310516797,0.80008184,2517.1,2517.0,1.2917]
[1749310517003,0.79415,2517.0,2516.9,2.15867]
[1749310517204,0.79415,2517.0,2516.9,1.3645]
[1749310517399,0.79415,2517.0,2516.9,0.6828]
[1749310517591,0.79415,2517.0,2516.9,1.47698]
[1749310517796,0.79415,2517.0,2516.9,0.6828]
[1749310518289,0.79415,2517.0,2516.9,1.47698]
[1749310518904,0.79415,2517.0,2516.9,0.6828]
[1749310519103,0.79415,2517.0,2516.9,1.47698]
[1749310519305,0.79415,2517.0,2516.9,0.6828]
[1749310521108,0.80010184,2517.1,2517.0,0.79415]
[1749310521497,0.79415,2517.0,2516.9,1.47696]
[1749310526207,0.80011184,2517.1,2517.0,0.79415]
[1749310526406,0.79415,2517.0,2516.9,0.6828]
[1749310527603,0.79415,2517.0,2516.9,1.47696]
[1749310528904,1.91632781,2517.0,2516.9,1.47696]
[1749310529309,1.91654758,2517.0,2516.9,1.47696]
[1749310530611,1.12239758,2517.0,2516.9,1.47696]
[1749310532501,1.91654758,2517.0,2516.9,1.47696]
[1749310534917,1.12239758,2517.0,2516.9,1.54587172]
[1749310535116,0.00596184,2517.1,2517.0,0.79415]
[1749310535311,0.00596184,2517.1,2517.0,2.84425]
[1749310538821,0.00596184,2517.1,2517.0,1.48665]
[1749310551139,0.00596184,2517.1,2517.0,1.55556172]
[1749310557037,0.00596184,2517.1,2517.0,2.90646172]
[1749310558741,0.00596184,2517.1,2517.0,1.55556172]
[1749310573256,0.80008184,2517.1,2517.0,1.55556172]
[1749310573855,0.00596184,2517.1,2517.0,1.55556172]
[1749310574956,0.80008184,2517.1,2517.0,1.55556172]
[1749310575548,0.00596184,2517.1,2517.0,1.55556172]
[1749310580251,1.3837,2517.9,2517.8,0.7939]
[1749310580457,1.12196768,2517.9,2517.8,0.7939]
[1749310581058,4.7,2518.0,2517.9,0.79387]
[1749310581259,5.82103412,2518.0,2517.9,0.79387]
[1749310581660,5.82010625,2518.0,2517.9,0.79387]
[1749310582261,6.61394625,2518.0,2517.7,3.2078]
[1749310582560,5.49384,2518.0,2517.9,0.79387]
[1749310582958,5.49384,2518.0,2517.8,1.49018]
[1749310583160,0.79387,2517.9,2517.8,1.49018]
[1749310583359,5.49386,2518.0,2517.8,1.49018]
[1749310583667,5.49386,2518.0,2517.9,0.79387]
[1749310583863,4.7,2518.0,2517.9,0.79387]
[1749310584054,5.49386,2518.0,2517.8,1.49018]
[1749310584259,5.49386,2518.0,2517.9,0.79387]
[1749310584759,5.49386,2518.0,2517.8,1.49018]
[1749310588463,5.49386,2518.0,2517.8,0.6963]
[1749310588667,0.79387,2517.9,2517.8,1.49018]
[1749310588860,4.7,2518.0,2517.9,0.79387]
[1749310589463,5.49387,2518.0,2517.8,0.6963]
[1749310589663,4.7,2518.0,2517.8,0.6963]
[1749310589864,5.49386,2518.0,2517.8,0.6963]
[1749310590264,4.7,2518.0,2517.9,0.79387]
[1749310590669,5.49387,2518.0,2517.9,0.79387]
[1749310591272,0.79387,2517.9,2517.8,1.49018]
[1749310591469,4.7,2518.0,2517.8,0.6963]
[1749310591669,5.49387,2518.0,2517.9,0.79387]
[1749310592471,4.7,2518.0,2517.8,0.6963]
[1749310592663,0.79387,2517.9,2517.8,1.49018]
[1749310592863,4.7,2518.0,2517.8,0.6963]
[1749310593064,0.79387,2517.9,2517.8,1.49018]
[1749310593472,5.49386,2518.0,2517.9,0.79387]
[1749310595173,5.49386,2518.0,2517.8,1.49018]
[1749310595472,0.79387,2517.9,2517.8,1.49018]
[1749310595873,0.79387,2517.9,2517.8,1.55909172]
[1749310596574,4.7,2518.0,2517.9,0.79387]
[1749310596975,5.49384,2518.0,2517.9,0.79387]
[1749310597274,4.7,2518.0,2517.9,0.79387]
[1749310598473,4.7,2518.0,2517.8,0.76521172]
[1749310598669,4.7,2518.0,2517.9,0.79387]
[1749310599773,5.49384,2518.0,2517.9,0.79387]
[1749310599974,0.79387,2517.9,2517.8,1.55910172]
[1749310600173,1.48707,2517.9,2517.8,1.55910172]
[1749310603677,2.06492,2518.1,2518.0,0.79384]
[1749310603877,2.73312,2518.1,2518.0,0.79384]
[1749310604780,0.79384,2518.0,2517.9,0.79385]
[1749310605579,2.73312,2518.1,2518.0,0.79384]
[1749310605781,1.46202,2518.1,2518.0,0.79384]
[1749310606680,0.6682,2518.1,2518.0,0.79384]
[1749310606881,0.00596184,2518.2,2518.1,0.79381]
[1749310607377,4.695,2518.7,2518.6,0.79365]
[1749310609381,0.79359,2518.8,2518.4,0.6338]
[1749310609578,10.02063184,2518.9,2518.7,0.79359]
[1749310609977,9.22706184,2518.9,2518.6,0.79363]
[1749310610383,0.79359,2518.8,2518.6,0.79363]
[1749310610580,9.22706184,2518.9,2518.6,0.79363]
[1749310611278,0.79362,2518.7,2518.6,0.79363]
[1749310611479,9.22706184,2518.9,2518.5,0.79366]
[1749310611678,0.79364,2518.7,2518.5,0.79368]
[1749310612285,0.79364,2518.7,2518.6,0.79365]
[1749310614882,11.21102184,2518.9,2518.4,1.4275]
[1749310615185,0.79368,2518.5,2518.4,0.7937]
[1749310615388,1.3374,2518.6,2518.4,0.7937]
[1749310615687,1.48698,2518.5,2518.4,0.7937]
[1749310616089,0.6933,2518.5,2518.4,0.7937]
[1749310616286,1.48698,2518.5,2518.4,0.7937]
[1749310616789,0.6933,2518.5,2518.4,0.7937]
[1749310622481,0.79364,2518.7,2518.2,2.61421]
[1749310622685,1.48514,2518.7,2518.2,3.99281]
[1749310623190,1.48514,2518.7,2518.6,0.79365]
[1749310623784,0.79366,2518.6,2518.5,0.79367]
[1749310624188,2.74764,2518.7,2518.6,0.79365]
[1749310625289,1.954,2518.7,2518.4,0.06891172]
[1749310625593,0.79366,2518.6,2518.5,0.79367]
[1749310625992,1.954,2518.7,2518.4,0.06891172]
[1749310626291,0.79366,2518.6,2518.5,0.79368]
[1749310626592,0.79365,2518.6,2518.5,0.79368]
[1749310630089,2.74763,2518.7,2518.6,0.79365]
[1749310630388,0.6915,2518.7,2518.6,0.79365]
[1749310631299,1.48512,2518.7,2518.6,0.79365]
[1749310631594,0.6915,2518.7,2518.6,0.79365]
[1749310632096,1.48512,2518.7,2518.6,0.79365]
[1749310634195,0.79362,2518.7,2518.6,0.79365]
[1749310635299,7.8968,2518.8,2518.5,1.3454]
[1749310635501,0.79365,2518.6,2518.5,2.13907]
[1749310635692,0.79365,2518.6,2518.5,1.44387]
[1749310636092,1.46274,2518.7,2518.5,1.44387]
[1749310636302,0.79365,2518.6,2518.5,1.44387]
[1749310636498,1.93480933,2518.6,2518.5,1.44387]
[1749310637896,1.14115933,2518.6,2518.5,1.44387]
[1749310639501,8.69041,2518.8,2518.7,0.79362]
[1749310639695,9.83141004,2518.8,2518.7,0.79362]
[1749310639895,9.83141004,2518.8,2518.6,0.79363]
[1749310640097,1.93462004,2518.7,2518.6,0.79363]
[1749310641705,1.14100004,2518.7,2518.6,0.79363]
[1749310642100,1.93462004,2518.7,2518.6,0.79363]
[1749310650309,1.14100004,2518.7,2518.6,0.79363]
[1749310655805,1.14100004,2518.7,2518.6,0.86254172]
[1749310657011,1.14100004,2518.7,2518.6,0.79363]
[1749310665130,1.95190755,2518.8,2518.7,0.7936]
[1749310665319,1.95190896,2518.8,2518.7,0.7936]
[1749310665622,1.95191312,2518.8,2518.7,0.7936]
[1749310667223,0.79362,2518.7,2518.6,0.79363]
[1749310667425,5.01722312,2518.7,2518.5,1.44385]
[1749310667623,1.15832312,2518.6,2518.5,1.44385]
[1749310672427,1.95197312,2518.6,2518.5,1.44385]
[1749310672633,1.15832312,2518.6,2518.5,1.44385]
[1749310674034,1.95197312,2518.6,2518.5,1.44385]
[1749310674229,0.79373,2518.4,2518.1,3.2078]
[1749310674532,2.12747,2518.6,2518.4,0.79371]
[1749310674729,1.15594787,2518.5,2518.4,0.79371]
[1749310676436,1.94962787,2518.5,2518.4,0.79371]
[1749310677538,1.94962787,2518.5,2518.3,0.79372]
[1749310677738,0.6556,2518.4,2518.3,0.79372]
[1749310680037,5.0189425,2518.4,2517.9,0.70146184]
[1749310680233,0.79381,2518.1,2518.0,0.79382]
[1749310680431,0.79384,2518.0,2517.9,0.00596184]
[1749310680633,2.58693792,2518.0,2517.9,0.00596184]
[1749310680831,1.43124,2518.0,2517.9,0.00596184]
[1749310681130,2.58696043,2518.0,2517.9,0.00596184]
[1749310681437,2.58696043,2518.0,2517.9,0.79983184]
[1749310681438,0.6374,2518.0,2517.9,0.79983184]
[1749310682035,1.43124,2518.0,2517.9,0.79983184]
[1749310682440,0.6374,2518.0,2517.9,0.79983184]
[1749310682641,1.43124,2518.0,2517.9,0.00596184]
[1749310683337,0.6374,2518.0,2517.9,0.79983184]
[1749310684650,0.6368,2518.3,2517.9,0.00596184]
[1749310684939,4.00153,2518.4,2517.9,0.00596184]
[1749310685133,5.83782353,2518.3,2518.2,0.79376]
[1749310685340,5.83768966,2518.3,2518.2,0.79376]
[1749310685539,6.63142966,2518.3,2518.1,0.79378]
[1749310685736,5.47874,2518.3,2518.1,0.79378]
[1749310685932,5.47874,2518.3,2518.2,0.6482]
[1749310686134,6.6314182,2518.3,2518.2,0.6482]
[1749310686642,6.6314182,2518.3,2518.2,1.44198]
[1749310687134,6.6314182,2518.3,2518.2,0.6482]
[1749310687540,6.6314182,2518.3,2518.2,1.44197]
[1749310689338,1.9464182,2518.3,2518.2,1.44197]
[1749310689842,1.1526782,2518.3,2518.2,1.44197]
[1749310690438,7.8868,2518.4,2518.3,0.79374]
[1749310690744,8.68053,2518.4,2518.3,0.79374]
[1749310690945,9.83277713,2518.4,2518.3,0.79374]
[1749310692743,0.79374,2518.3,2518.2,0.6482]
[1749310693043,0.79374,2518.3,2518.2,1.44196]
[1749310693737,7.8868,2518.4,2518.2,0.6482]
[1749310693946,0.79374,2518.3,2518.2,1.44197]
[1749310694948,0.79374,2518.3,2518.2,0.6482]